bitfinex/quotes_SOLUSD_20240816
["timestamp","ask_amount","ask_price","bid_price","bid_amount"]
[1723822072954,7.51423938,137.35,137.23,18.217]
[1723822073112,7.51423938,137.35,137.24,45.0]
[1723822073313,7.2828,137.31,137.26,7.285]
[1723822073611,7.2818,137.33,137.27,18.2112]
[1723822074337,7.51544546,137.38,137.27,18.2112]
[1723822074540,7.2813,137.34,137.29,7.2837]
[1723822074841,7.2806,137.36,137.31,7.2826]
[1723822075141,7.2806,137.36,137.3,23.4707]
[1723822075313,7.2807,137.35,137.3,23.4707]
[1723822075513,7.2795,137.38,137.33,7.2816]
[1723822075737,7.2795,137.38,137.33,7.2815]
[1723822075916,7.2787,137.39,137.34,7.2811]
[1723822076115,7.51800811,137.44,137.32,25.4873]
[1723822076323,9.33441317,137.44,137.32,18.2055]
[1723822076943,9.33441317,137.44,137.33,7.2816]
[1723822077113,9.33441317,137.44,137.32,25.4875]
[1723822077310,9.33441317,137.44,137.3,16.1875]
[1723822077530,9.33441317,137.44,137.33,7.2817]
[1723822077968,7.51800811,137.44,137.31,36.4134]
[1723822078111,1.81640506,137.5,137.35,18.2006]
[1723822078312,7.51633698,137.48,137.35,18.2006]
[1723822078516,9.33274204,137.48,137.37,7.2795]
[1723822078761,7.51633698,137.48,137.37,7.2795]
[1723822078943,7.51633698,137.48,137.39,7.278]
[1723822079142,6.3605,137.57,137.43,7.2764]
[1723822079143,1.81640506,137.56,137.43,7.2764]
[1723822079317,1.81640506,137.56,137.41,34.6756]
[1723822079644,1.81640506,137.56,137.41,23.7606]
[1723822079842,7.2737,137.49,137.43,7.2761]
[1723822080054,7.2731,137.5,137.44,7.2757]
[1723822080263,7.51475469,137.55,137.43,18.1909]
[1723822080437,7.2732,137.49,137.43,25.4668]
[1723822080753,6.2364,137.62,137.43,18.1909]
[1723822080754,7.50928721,137.55,137.43,18.1909]
[1723822081055,7.2748,137.46,137.41,16.4832]
[1723822081267,1.81640506,137.54,137.41,16.4832]
[1723822081268,7.2733,137.49,137.44,7.2758]
[1723822081551,7.2728,137.5,137.45,7.2753]
[1723822081734,7.50928721,137.55,137.41,16.4832]
[1723822081735,7.50928721,137.55,137.44,18.1887]
[1723822081943,6.2364,137.62,137.42,0.12549]
[1723822082140,7.2715,137.53,137.47,7.2742]
[1723822082344,1.81640506,137.58,137.42,83.31689]
[1723822082530,1.81640506,137.57,137.44,7.2757]
[1723822082744,7.50909256,137.56,137.44,18.1887]
[1723822082951,7.50909256,137.56,137.43,0.12549]
[1723822083139,7.2706,137.54,137.49,7.273]
[1723822083549,7.50712675,137.61,137.49,18.1819]
[1723822083772,1.81640506,137.6,137.48,7.2732]
[1723822083947,1.81640506,137.6,137.49,7.273]
[1723822084257,7.50712675,137.61,137.49,18.183]
[1723822084459,7.50712675,137.61,137.48,0.12549]
[1723822084764,7.50440875,137.64,137.53,22.8435]
[1723822084939,7.50440875,137.64,137.54,18.1755]
[1723822085347,1.81640506,137.63,137.53,15.5726]
[1723822085554,1.81640506,137.63,137.53,22.8434]
[1723822085741,7.50440875,137.64,137.54,7.2705]
[1723822086154,7.50440875,137.64,137.53,15.5726]
[1723822086359,7.50440875,137.64,137.54,7.2705]
[1723822086675,7.50440875,137.64,137.55,18.1744]
[1723822086842,7.50440875,137.64,137.53,15.5726]
[1723822087160,7.50440875,137.64,137.55,7.2698]
[1723822087366,7.2673,137.61,137.55,7.2698]
[1723822087535,1.81640506,137.67,137.54,25.4458]
[1723822087743,7.2674,137.6,137.54,25.4458]
[1723822087934,9.32141091,137.67,137.53,15.5726]
[1723822088138,7.2706,137.54,137.48,18.184]
[1723822088354,9.32141091,137.67,137.47,21.3835]
[1723822088562,9.32141091,137.67,137.48,18.1842]
[1723822088745,45.0,137.66,137.48,18.1842]
[1723822089070,7.2727,137.5,137.47,21.3835]
[1723822089265,7.2732,137.49,137.47,21.3835]
[1723822089472,7.2718,137.52,137.47,28.6576]
[1723822089655,7.2724,137.51,137.47,21.3835]
[1723822089972,1.81640506,137.64,137.47,21.3835]
[1723822090272,7.2696,137.56,137.51,7.2721]
[1723822090589,7.2704,137.55,137.5,7.2726]
[1723822090747,7.2715,137.53,137.48,25.4568]
[1723822091083,8.10310506,137.63,137.47,15.0781]
[1723822091379,8.10310506,137.63,137.39,16.2248]
[1723822091380,21.81640506,137.62,137.39,16.2248]
[1723822091542,30.0,137.5,137.39,16.2248]
[1723822091741,1.81640506,137.49,137.39,16.2248]
[1723822091943,1.81640506,137.48,137.39,16.2248]
[1723822092246,30.0,137.5,137.4,7.2775]
[1723822092454,3.22080965,137.55,137.41,7.2773]
[1723822092661,20.0,137.62,137.39,16.2248]
[1723822092887,46.81640506,137.61,137.39,16.2248]
[1723822093058,1.81640506,137.6,137.43,18.1902]
[1723822093248,1.81640506,137.6,137.43,25.4665]
[1723822093572,1.81640506,137.6,137.44,7.2757]
[1723822093806,1.81640506,137.6,137.44,7.2758]
[1723822093986,1.81640506,137.59,137.31,51.5922]
[1723822094306,1.81640506,137.59,137.39,7.2784]
[1723822094578,1.81640506,137.59,137.38,18.1966]
[1723822094740,1.81640506,137.59,137.4,18.194]
[1723822095121,1.81640506,137.59,137.44,18.1886]
[1723822095304,7.2732,137.49,137.44,25.464]
[1723822095508,7.2728,137.5,137.45,7.2749]
[1723822095671,7.2728,137.5,137.46,45.0]
[1723822095877,1.81640506,137.62,137.46,45.0]
[1723822095878,7.2725,137.51,137.46,52.2745]
[1723822096123,7.2723,137.51,137.46,52.2748]
[1723822096590,7.2717,137.52,137.47,7.2741]
[1723822096790,7.2717,137.52,137.46,45.0]
[1723822096791,1.81640506,137.62,137.48,45.0]
[1723822097009,1.81640506,137.62,137.46,63.1863]
[1723822097221,7.2712,137.53,137.47,16.3397]
[1723822097375,6.2867,137.63,137.48,45.0]
[1723822097776,6.2867,137.63,137.5,7.2723]
[1723822098003,7.51726473,137.62,137.5,7.2723]
[1723822098198,7.2701,137.55,137.5,7.2726]
[1723822098397,1.81640506,137.61,137.48,18.1836]
[1723822098578,7.2727,137.51,137.47,22.9864]
[1723822098774,7.2717,137.52,137.47,30.2606]
[1723822099018,1.81640506,137.6,137.49,7.2731]
[1723822099213,7.271,137.54,137.49,7.2732]
[1723822099587,7.51726473,137.62,137.5,7.2726]
[1723822099588,7.2702,137.55,137.5,7.2726]
[1723822100116,7.2707,137.54,137.49,25.4554]
[1723822100479,9.33366979,137.62,137.48,7.39909]
[1723822100680,9.33366979,137.62,137.41,22.5033]
[1723822100681,1.81640506,137.61,137.41,22.5033]
[1723822100882,7.2744,137.47,137.42,7.2769]
[1723822101192,1.81640506,137.6,137.41,22.5033]
[1723822101391,1.81640506,137.6,137.41,16.2166]
[1723822101787,7.2766,137.43,137.41,16.2166]
[1723822102302,7.2759,137.44,137.41,16.2166]
[1723822102487,7.2764,137.43,137.41,16.2166]
[1723822103517,7.2754,137.45,137.41,16.2166]
[1723822103819,1.81640506,137.57,137.41,16.2166]
[1723822104118,6.155,137.56,137.35,22.7663]
[1723822104289,66.81640506,137.55,137.35,22.7663]
[1723822104487,1.81640506,137.54,137.35,22.7663]
[1723822105099,7.2775,137.41,137.36,7.2801]
[1723822105296,65.0,137.55,137.39,7.2783]
[1723822105297,20.0,137.55,137.39,7.2783]
[1723822105495,6.155,137.56,137.37,18.1981]
[1723822105689,7.97140506,137.56,137.39,7.278]
[1723822105883,7.276,137.44,137.39,7.278]
[1723822106125,7.2754,137.45,137.4,7.2779]
[1723822106312,7.51726473,137.62,137.42,0.12549]
[1723822106489,7.92190506,137.61,137.42,45.12549]
[1723822106694,1.81640506,137.6,137.42,45.0]
[1723822106911,1.81640506,137.6,137.43,25.4663]
[1723822107224,2.50398106,137.6,137.43,18.1903]
[1723822107387,2.50398106,137.6,137.43,25.4662]
[1723822107985,2.50398106,137.6,137.43,18.1903]
[1723822108188,7.5192837,137.59,137.45,18.1877]
[1723822108418,7.5192837,137.59,137.46,22.2913]
[1723822108622,7.5192837,137.59,137.4,15.0168]
[1723822108623,1.81640506,137.58,137.4,15.0168]
[1723822109607,21.81640506,137.58,137.4,15.0168]
[1723822109794,7.2769,137.42,137.4,15.0168]
[1723822110174,7.2787,137.39,137.35,24.4875]
[1723822110446,7.2791,137.38,137.35,24.4875]
[1723822110608,6.5715,137.49,137.35,24.4875]
[1723822110811,7.2789,137.39,137.35,24.4875]
[1723822111406,7.2781,137.4,137.35,31.7679]
[1723822111848,7.2765,137.43,137.38,7.279]
[1723822112139,6.5715,137.54,137.37,25.4779]
[1723822112140,7.277,137.42,137.37,25.4779]
[1723822112352,7.277,137.42,137.38,7.2788]
[1723822112505,7.276,137.44,137.39,7.2783]
[1723822113005,7.276,137.44,137.35,6.2867]
[1723822113006,1.81640506,137.53,137.35,6.2867]
[1723822113732,1.81640506,137.53,137.36,7.2796]
[1723822113733,46.81640506,137.53,137.36,7.2796]
[1723822114232,7.2776,137.41,137.36,7.2796]
[1723822114436,7.278,137.4,137.35,13.5673]
[1723822115004,30.0,137.39,137.28,16.4758]
[1723822115744,1.81640506,137.42,137.29,18.2084]
[1723822115908,6.5715,137.43,137.28,16.4758]
[1723822116108,7.2832,137.31,137.28,16.4758]
[1723822116309,20.0,137.42,137.28,16.4758]
[1723822116516,7.2823,137.32,137.28,16.4758]
[1723822117022,7.2828,137.31,137.28,16.4758]
[1723822117331,6.5715,137.48,137.28,17.93145299]
[1723822117521,7.2801,137.36,137.31,7.2823]
[1723822117729,7.2795,137.38,137.33,7.2816]
[1723822117943,8.38790506,137.48,137.28,16.4758]
[1723822118529,7.52770316,137.47,137.28,16.4758]
[1723822118859,7.2817,137.34,137.29,7.2834]
[1723822119023,7.2817,137.33,137.28,23.7601]
[1723822119353,7.2818,137.33,137.28,23.7601]
[1723822119521,7.2819,137.33,137.28,23.76]
[1723822119720,7.2813,137.34,137.29,7.2837]
[1723822119920,7.2807,137.35,137.3,7.283]
[1723822120222,7.52770316,137.47,137.31,45.0]
[1723822120424,7.2796,137.37,137.31,45.0]
[1723822120722,7.52770316,137.47,137.33,7.2812]
[1723822120936,7.52770316,137.47,137.33,18.2031]
[1723822121129,7.52770316,137.47,137.28,16.4758]
[1723822121130,9.34410822,137.47,137.28,16.4758]
[1723822122028,9.34410822,137.47,137.22,7.2871]
[1723822122029,7.237,137.44,137.22,7.2871]
[1723822122240,66.81640506,137.43,137.22,7.2871]
[1723822122420,65.0,137.43,137.25,7.2857]
[1723822122626,65.0,137.43,137.24,7.2864]
[1723822124250,7.2849,137.27,137.22,18.2177]
[1723822124553,7.2848,137.28,137.22,18.2177]
[1723822124856,20.0,137.43,137.23,1.45466725]
[1723822125020,7.2834,137.3,137.25,7.2858]
[1723822125235,1.81640506,137.43,137.24,18.2153]
[1723822125470,20.0,137.44,137.24,18.2153]
[1723822125651,7.2844,137.28,137.24,18.2153]
[1723822127246,1.81640506,137.43,137.23,7.2865]
[1723822127451,46.81640506,137.43,137.23,7.2865]
[1723822127770,20.0,137.42,137.23,7.2865]
[1723822127943,46.81640506,137.41,137.23,7.2865]
[1723822128353,20.0,137.4,137.22,7.2874]
[1723822128549,46.81640506,137.39,137.22,7.2874]
[1723822128746,20.0,137.38,137.23,7.287]
[1723822128967,46.81640506,137.37,137.22,7.2874]
[1723822129356,46.81640506,137.37,137.23,7.287]
[1723822129568,45.0,137.37,137.21,0.1260238]
[1723822129744,27.88990506,137.36,137.21,0.1260238]
[1723822129948,46.81640506,137.35,137.21,0.1260238]
[1723822130260,20.0,137.34,137.21,0.1260238]
[1723822130474,46.81640506,137.33,137.21,0.1260238]
[1723822130669,21.81640506,137.32,137.21,0.1260238]
[1723822130975,45.0,137.31,137.21,0.1260238]
[1723822131154,21.81640506,137.3,137.21,0.1260238]
[1723822131350,1.81640506,137.29,137.21,0.1260238]
[1723822131551,20.0,137.3,137.21,0.1260238]
[1723822131960,1.81640506,137.29,137.21,0.1260238]
[1723822132160,21.81640506,137.33,137.21,0.1260238]
[1723822132475,20.0,137.33,137.21,0.1260238]
[1723822132649,45.0,137.32,137.21,0.1260238]
[1723822132852,7.2871,137.23,137.21,0.1260238]
[1723822133384,7.2865,137.24,137.21,0.1260238]
[1723822133742,22.89006575,137.33,137.21,0.1260238]
[1723822134066,2.89006575,137.33,137.21,0.1260238]
[1723822134391,7.287,137.23,137.21,0.1260238]
[1723822134750,7.2865,137.24,137.21,0.1260238]
[1723822135251,1.81640506,137.34,137.21,0.1260238]
[1723822135465,21.81640506,137.34,137.21,0.1260238]
[1723822135670,7.2874,137.23,137.21,0.1260238]
[1723822136165,21.81640506,137.34,137.21,0.1260238]
[1723822136376,45.0,137.33,137.21,0.1260238]
[1723822136663,20.0,137.32,137.21,0.1260238]
[1723822136864,45.0,137.31,137.21,0.1260238]
[1723822137646,18.2222,137.35,137.21,0.1260238]
[1723822137850,20.0,137.34,137.21,0.1260238]
[1723822138271,1.81640506,137.33,137.21,0.1260238]
[1723822138474,20.0,137.34,137.21,0.1260238]
[1723822139053,1.81640506,137.33,137.21,0.1260238]
[1723822139260,9.3480066,137.33,137.21,0.1260238]
[1723822139472,20.0,137.32,137.21,0.1260238]
[1723822139673,7.53160154,137.33,137.21,0.1260238]
[1723822139879,7.2849,137.27,137.21,0.1260238]
[1723822140055,7.2855,137.26,137.21,7.4139238]
[1723822140780,7.285,137.27,137.22,7.2875]
[1723822140975,7.53160154,137.33,137.22,7.2875]
[1723822140976,7.53160154,137.33,137.22,19.67472902]
[1723822141177,7.2845,137.28,137.24,7.2864]
[1723822141489,15.0604812,137.35,137.24,18.2156]
[1723822141685,7.2828,137.31,137.26,7.285]
[1723822141869,7.2834,137.3,137.26,7.285]
[1723822142071,7.284,137.29,137.25,67.7672]
[1723822142372,7.5274319,137.37,137.28,7.284]
[1723822142583,9.9659,137.38,137.28,7.284]
[1723822142776,9.9659,137.38,137.3,7.2831]
[1723822143100,7.52613997,137.4,137.31,7.2824]
[1723822143277,1.81640506,137.49,137.32,18.205]
[1723822143600,7.52451534,137.43,137.33,23.6825]
[1723822143787,16.2521,137.46,137.34,7.2811]
[1723822143977,7.52322916,137.48,137.35,7.2806]
[1723822144176,7.52322916,137.48,137.36,63.1996]
[1723822144397,7.52322916,137.48,137.36,18.1996]
[1723822144568,1.81640506,137.47,137.34,6.1381]
[1723822145875,45.0,137.47,137.34,6.1381]
[1723822146382,20.0,137.46,137.34,6.1381]
[1723822147076,20.0,137.47,137.34,6.1381]
[1723822147283,21.81640506,137.47,137.34,6.1381]
[1723822147502,20.0,137.47,137.34,6.1381]
[1723822147803,21.81640506,137.47,137.34,6.1381]
[1723822148295,20.0,137.47,137.34,6.1381]
[1723822148504,45.0,137.46,137.34,6.1381]
[1723822148797,21.81640506,137.47,137.34,24.3404]
[1723822149002,20.0,137.47,137.34,24.3404]
[1723822149183,20.0,137.47,137.34,6.1381]
[1723822150104,20.0,137.47,137.34,13.419]
[1723822150685,20.0,137.47,137.35,7.2805]
[1723822150911,7.52322916,137.48,137.36,7.2801]
[1723822151208,9.33963422,137.48,137.34,6.1381]
[1723822151454,9.33963422,137.48,137.35,7.2802]
[1723822151572,20.0,137.47,137.33,16.4012]
[1723822151769,1.81640506,137.46,137.33,16.4012]
[1723822151973,6.4797,137.44,137.28,15.6215]
[1723822152173,21.81640506,137.43,137.28,15.6215]
[1723822152584,45.0,137.42,137.28,15.6215]
[1723822152793,21.81640506,137.41,137.25,6.1686]
[1723822152996,30.0,137.36,137.25,6.1686]
[1723822153401,1.81640506,137.35,137.25,6.1686]
[1723822153608,66.81640506,137.35,137.22,15.6215]
[1723822153987,30.0,137.34,137.22,15.6215]
[1723822154191,1.81640506,137.33,137.22,15.6215]
[1723822154380,1.81640506,137.32,137.22,15.6215]
[1723822155198,30.0,137.31,137.22,15.6215]
[1723822155914,7.61986241,137.34,137.22,15.6215]
[1723822156095,2.50398106,137.56,137.28,7.2843]
[1723822156096,8.29610506,137.44,137.28,7.2843]
[1723822156302,18.221,137.43,137.29,1.45567638]
[1723822156602,18.221,137.43,137.3,1.45497436]
[1723822156793,18.221,137.43,137.29,1.45508033]
[1723822156993,18.221,137.43,137.28,7.2842]
[1723822156994,7.61609395,137.42,137.31,1.45486838]
[1723822157192,7.61609395,137.42,137.3,6.5865]
[1723822157603,7.61609395,137.42,137.3,24.7941]
[1723822158101,7.61609395,137.42,137.3,6.5865]
[1723822158593,7.61609395,137.42,137.31,23.0032]
[1723822158929,7.61609395,137.42,137.32,7.2821]
[1723822159214,2.89596613,137.44,137.33,1.45272132]
[1723822159415,18.2126,137.47,137.33,1.45272132]
[1723822159619,7.61406638,137.45,137.33,1.45272132]
[1723822160216,7.61406638,137.45,137.31,15.7205]
[1723822161293,65.0,137.44,137.31,15.7205]
[1723822162020,21.8145,137.43,137.25,6.3099]
[1723822162204,66.81640506,137.42,137.25,6.3099]
[1723822162603,66.81640506,137.42,137.21,6.4359238]
[1723822163017,7.294,137.41,137.21,13.7239238]
[1723822163321,66.81640506,137.4,137.21,6.4359238]
[1723822163629,1.81640506,137.39,137.21,13.7239238]
[1723822164238,30.0,137.32,137.21,13.7239238]
[1723822165027,1.81640506,137.31,137.21,22.0175238]
[1723822165228,30.0,137.29,137.21,29.3055238]
[1723822165623,30.0,137.29,137.22,7.287]
[1723822165835,30.0,137.29,137.23,7.2869]
[1723822166500,30.0,137.29,137.22,25.63119]
[1723822166702,30.0,137.29,137.23,45.0]
[1723822166925,30.0,137.29,137.22,18.34379]
[1723822167129,30.0,137.29,137.22,18.2183]
[1723822167828,30.0,137.29,137.23,52.2866]
[1723822168322,20.0,137.4,137.23,52.2866]
[1723822168323,20.0,137.4,137.24,18.2158]
[1723822168522,21.8145,137.43,137.25,53.86720789]
[1723822168928,1.81640506,137.42,137.26,7.2853]
[1723822169223,1.81640506,137.42,137.22,7.41289]
[1723822169533,1.81640506,137.42,137.23,63.34259]
[1723822169725,21.81640506,137.42,137.23,63.34259]
[1723822169924,7.61877257,137.41,137.23,63.34259]
[1723822170233,65.0,137.4,137.25,7.2858]
[1723822170430,65.0,137.4,137.24,7.2863]
[1723822170431,1.81640506,137.39,137.24,7.2863]
[1723822170634,1.81640506,137.39,137.23,70.62949]
[1723822170837,1.81640506,137.39,137.21,22.0175238]
[1723822171012,1.81640506,137.39,137.22,7.2874]
[1723822171625,65.0,137.4,137.23,7.2869]
[1723822171828,65.0,137.4,137.23,7.2868]
[1723822172027,65.0,137.4,137.24,7.2864]
[1723822172240,65.0,137.4,137.25,45.0]
[1723822172447,65.0,137.4,137.26,1.4564008]
[1723822173328,66.81640506,137.4,137.25,45.0]
[1723822173656,65.0,137.4,137.24,45.0]
[1723822174550,20.0,137.4,137.25,7.53678]
[1723822174744,20.0,137.4,137.26,45.0]
[1723822175133,20.0,137.4,137.26,63.213]
[1723822175513,20.0,137.4,137.27,7.41029]
[1723822175713,7.61877257,137.41,137.28,45.0]
[1723822176155,7.61877257,137.41,137.28,63.21]
[1723822176483,21.8145,137.43,137.3,25.4909]
[1723822176756,21.8145,137.43,137.31,45.0]
[1723822177118,21.8145,137.43,137.3,45.0]
[1723822177964,21.8145,137.43,137.3,52.2833]
[1723822178159,20.0,137.42,137.31,1.45576969]
[1723822179260,20.0,137.42,137.3,45.0]
[1723822180462,20.0,137.42,137.31,1.45568528]
[1723822180640,20.0,137.42,137.32,0.12549]
[1723822180836,20.0,137.42,137.32,45.12549]
[1723822181064,20.0,137.42,137.3,21.7261]
[1723822181258,20.0,137.42,137.26,6.133]
[1723822181549,20.0,137.42,137.27,1.11145976]
[1723822181873,20.0,137.42,137.26,6.133]
[1723822182076,45.0,137.41,137.26,6.133]
[1723822182247,20.0,137.4,137.26,6.133]
[1723822182756,20.0,137.4,137.27,45.0]
[1723822182959,20.0,137.4,137.26,6.133]
[1723822183349,20.0,137.4,137.26,13.418]
[1723822183742,30.0,137.33,137.26,13.418]
[1723822183946,30.0,137.33,137.26,6.133]
[1723822184251,30.0,137.33,137.31,7.2824]
[1723822184438,6.2878,137.43,137.32,45.0]
[1723822184839,6.2878,137.43,137.32,52.2822]
[1723822185061,6.2878,137.43,137.32,53.69635942]
[1723822185247,6.2878,137.43,137.32,52.2822]
[1723822186265,6.2878,137.43,137.33,0.12549]
[1723822186747,6.2878,137.43,137.28,18.2099]
[1723822187042,7.61544098,137.42,137.29,20.0]
[1723822187240,7.61544098,137.42,137.29,27.2837]
[1723822187655,7.61544098,137.42,137.3,7.2832]
[1723822187977,7.61544098,137.42,137.32,7.2821]
[1723822188159,6.2878,137.43,137.32,7.2821]
[1723822188351,6.2878,137.43,137.33,45.0]
[1723822189650,7.61380275,137.45,137.34,18.45348]
[1723822189973,22.0168,137.47,137.35,45.0]
[1723822190483,22.0168,137.47,137.36,18.32529]
[1723822190661,1.81640506,137.46,137.28,7.2842]
[1723822190848,1.81640506,137.46,137.21,0.1260238]
[1723822191048,6.2298,137.45,137.23,18.217]
[1723822191366,30.0,137.36,137.24,7.2863]
[1723822192152,30.0,137.36,137.25,7.2858]
[1723822193373,30.0,137.36,137.23,36.4327]
[1723822193551,30.0,137.36,137.28,7.2842]
[1723822193970,6.2298,137.42,137.28,7.2842]
[1723822194164,20.0,137.41,137.27,25.4966]
[1723822194367,20.0,137.41,137.28,45.0]
[1723822194950,20.0,137.41,137.28,52.2842]
[1723822195170,20.0,137.41,137.29,7.2837]
[1723822195480,6.2298,137.42,137.3,18.2079]
[1723822195780,6.2298,137.42,137.31,52.2827]
[1723822195948,6.2298,137.42,137.32,7.282]
[1723822196147,6.2298,137.42,137.27,18.33739]
[1723822196148,1.81640506,137.41,137.27,18.33739]
[1723822196359,8.04620506,137.42,137.27,25.4967]
[1723822196561,8.04620506,137.42,137.28,52.2842]
[1723822196764,8.04620506,137.42,137.28,45.0]
[1723822197050,8.04620506,137.42,137.28,52.2842]
[1723822197254,20.0,137.41,137.28,52.2842]
[1723822197854,20.0,137.41,137.28,45.0]
[1723822198657,20.0,137.41,137.28,43.5963]
[1723822198852,20.0,137.41,137.3,7.2833]
[1723822199073,1.81640506,137.4,137.29,25.4929]
[1723822199466,20.0,137.41,137.3,7.2833]
[1723822199667,6.2298,137.42,137.29,19.28346322]
[1723822199972,6.2298,137.42,137.3,0.25098]
[1723822200171,6.2298,137.42,137.31,18.2064]
[1723822200371,6.2298,137.42,137.32,7.2821]
[1723822200878,6.2298,137.42,137.31,18.2064]
[1723822201077,6.2298,137.42,137.35,7.2804]
[1723822201289,6.2298,137.42,137.36,1.14812743]
[1723822201498,6.2298,137.42,137.35,7.2804]
[1723822201801,6.2298,137.42,137.3,18.33309]
[1723822202104,6.2298,137.42,137.32,7.2821]
[1723822202259,6.2298,137.42,137.3,25.4905]
[1723822202469,1.81640506,137.41,137.27,25.4968]
[1723822202661,6.2298,137.42,137.25,16.4657]
[1723822202662,15.8895,137.4,137.25,16.4657]
[1723822202967,30.0,137.36,137.26,8.74144322]
[1723822203171,30.0,137.36,137.27,7.2848]
[1723822203575,30.0,137.36,137.25,16.4657]
[1723822203770,30.0,137.36,137.24,18.2154]
[1723822203771,30.0,137.36,137.24,25.5018]
[1723822204266,8.39120506,137.35,137.24,25.5018]
[1723822204469,8.39120506,137.35,137.24,18.2154]
[1723822204470,30.0,137.34,137.24,18.2154]
[1723822205175,30.0,137.34,137.25,8.27514753]
[1723822206390,30.0,137.34,137.31,73.39015152]
[1723822206885,6.5748,137.35,137.31,73.39015152]
[1723822208474,6.4369,137.39,137.31,73.39015152]
[1723822209004,6.4369,137.39,137.31,93.05179811]
[1723822209303,6.2184,137.43,137.33,18.2039]
[1723822209505,6.2184,137.43,137.33,25.4851]
[1723822209813,6.2184,137.43,137.35,7.2806]
[1723822210098,15.7944,137.45,137.36,1.45507995]
[1723822210272,15.7944,137.45,137.35,25.4816]
[1723822210480,15.7944,137.45,137.37,7.2794]
[1723822210698,6.352,137.47,137.38,1.45468425]
[1723822210882,6.352,137.47,137.38,8.73358425]
[1723822211190,6.352,137.47,137.39,1.45485434]
[1723822211387,6.352,137.47,137.4,1.45474845]
[1723822211600,6.352,137.47,137.41,1.4545581]
[1723822211777,6.352,137.47,137.35,7.2803]
[1723822211980,6.352,137.47,137.34,7.2811]
[1723822212172,6.352,137.47,137.35,45.12549]
[1723822212379,6.352,137.47,137.35,18.2006]
[1723822212579,1.81640506,137.46,137.35,18.2006]
[1723822212781,21.81640506,137.46,137.35,18.2006]
[1723822212991,20.0,137.46,137.36,7.28]
[1723822213311,6.352,137.47,137.35,25.4811]
[1723822213996,30.0,137.4,137.31,73.39015152]
[1723822214200,7.2822,137.32,137.31,73.39015152]
[1723822216185,7.2818,137.33,137.31,73.39015152]
[1723822216402,18.1996,137.37,137.31,73.39015152]
[1723822217190,6.6645,137.39,137.31,73.39015152]
[1723822217191,7.2808,137.35,137.31,73.39015152]
[1723822217386,6.6645,137.39,137.31,73.39015152]
[1723822217611,7.2818,137.33,137.31,73.39015152]
[1723822217824,7.2822,137.32,137.31,73.39015152]
[1723822219888,7.2822,137.32,137.31,69.23445152]
[1723822220190,37.2822,137.32,137.31,8.04235152]
[1723822220421,37.2822,137.32,137.31,6.39759471]
[1723822220602,40.16388246,137.32,137.31,6.39759471]
[1723822220984,6.0453,137.31,137.26,79.13241457]
[1723822221184,66.81640506,137.3,137.26,79.13241457]
[1723822221413,30.0,137.29,137.26,79.13241457]
[1723822221621,21.81640506,137.28,137.26,79.13241457]
[1723822221834,20.0,137.28,137.26,79.13241457]
[1723822221983,21.81640506,137.28,137.26,79.13241457]
[1723822222188,20.0,137.28,137.26,79.13241457]
[1723822222417,1.81640506,137.27,137.26,75.34921457]
[1723822222910,20.0,137.28,137.26,75.34921457]
[1723822222911,1.81640506,137.28,137.26,75.34921457]
[1723822223112,46.81640506,137.28,137.26,60.88921458]
[1723822223329,20.0,137.27,137.26,48.43948942]
[1723822223545,65.0,137.27,137.26,12.31317002]
[1723822224190,20.0,137.27,137.26,12.31317002]
[1723822225506,6.0453,137.31,137.26,12.31317002]
[1723822225695,13.65302038,137.31,137.26,12.31317002]
[1723822226729,45.0,137.3,137.26,12.31317002]